[Event "Titled Tuesday Blitz April 05 Late 2022"]
[White "Bilan, Danila"]
[Black "Fishbein, Alexander"]
[WhiteFideId "24161918"]
[BlackFideId "2000377"]
[WhiteElo "2164"]
[BlackElo "2442"]
[Result "0-1"]
[Round "08"]
[TimeControl "180+1"]
[Date "2022.04.05"]
[WhiteClock "0:00:04"]
[BlackClock "0:00:09"]

1. d4 {[%clk 0:02:59]}  Nf6 {[%clk 0:02:59]} 2. Nf3 {[%clk 0:02:59]}  g6 {[%clk 0:02:59]} 3. Bg5 {[%clk 0:02:59]}  Bg7 {[%clk 0:02:58]} 4. c3 {[%clk 0:03:00]}  O-O {[%clk 0:02:58]} 5. Nbd2 {[%clk 0:02:59]}  d6 {[%clk 0:02:58]} 6. e4 {[%clk 0:02:59]}  Nc6 {[%clk 0:02:54]} 7. Be2 {[%clk 0:02:50]}  e5 {[%clk 0:02:53]} 8. dxe5 {[%clk 0:02:51]}  Nxe5 {[%clk 0:02:52]} 9. Nxe5 {[%clk 0:02:50]}  dxe5 {[%clk 0:02:53]} 10. O-O {[%clk 0:02:50]}  Be6 {[%clk 0:02:51]} 11. Qc2 {[%clk 0:02:49]}  h6 {[%clk 0:02:50]} 12. Bh4 {[%clk 0:02:37]}  c6 {[%clk 0:02:50]} 13. Bc4 {[%clk 0:02:34]}  Qe7 {[%clk 0:02:41]} 14. Bxe6 {[%clk 0:02:28]}  Qxe6 {[%clk 0:02:41]} 15. Bxf6 {[%clk 0:02:18]}  Bxf6 {[%clk 0:02:39]} 16. Qb3 {[%clk 0:02:18]}  Qxb3 {[%clk 0:02:37]} 17. Nxb3 {[%clk 0:02:12]}  b6 {[%clk 0:02:29]} 18. Rfd1 {[%clk 0:02:09]}  Rfd8 {[%clk 0:02:29]} 19. Kf1 {[%clk 0:02:08]}  Kf8 {[%clk 0:02:29]} 20. Ke2 {[%clk 0:02:08]}  Ke7 {[%clk 0:02:28]} 21. a4 {[%clk 0:02:03]}  a5 {[%clk 0:02:13]} 22. Nd2 {[%clk 0:01:55]}  b5 {[%clk 0:02:12]} 23. axb5 {[%clk 0:01:32]}  cxb5 {[%clk 0:02:11]} 24. Nb3 {[%clk 0:01:30]}  a4 {[%clk 0:02:06]} 25. Nc5 {[%clk 0:01:25]}  Rac8 {[%clk 0:02:02]} 26. Nd3 {[%clk 0:01:20]}  Ke6 {[%clk 0:01:56]} 27. Nb4 {[%clk 0:01:17]}  Rxd1 {[%clk 0:01:40]} 28. Rxd1 {[%clk 0:01:13]}  Be7 {[%clk 0:01:40]} 29. Nd5 {[%clk 0:01:08]}  Bc5 {[%clk 0:01:40]} 30. f3 {[%clk 0:01:03]}  f5 {[%clk 0:01:38]} 31. g4 {[%clk 0:00:59]}  Rc6 {[%clk 0:01:06]} 32. Ra1 {[%clk 0:00:34]}  Bf8 {[%clk 0:00:58]} 33. Kd3 {[%clk 0:00:28]}  Bd6 {[%clk 0:00:43]} 34. h3 {[%clk 0:00:26]}  Rc8 {[%clk 0:00:41]} 35. Rg1 {[%clk 0:00:18]}  fxg4 {[%clk 0:00:38]} 36. fxg4 {[%clk 0:00:10]}  Rf8 {[%clk 0:00:38]} 37. Ke2 {[%clk 0:00:09]}  b4 {[%clk 0:00:31]} 38. cxb4 {[%clk 0:00:07]}  Rb8 {[%clk 0:00:27]} 39. Rf1 {[%clk 0:00:05]}  Be7 {[%clk 0:00:24]} 40. Kd3 {[%clk 0:00:03]}  Bg5 {[%clk 0:00:21]} 41. Kc4 {[%clk 0:00:02]}  Rc8+ {[%clk 0:00:21]} 42. Kb5 {[%clk 0:00:02]}  Rc2 {[%clk 0:00:20]} 43. Kxa4 {[%clk 0:00:02]}  Rxb2 {[%clk 0:00:21]} 44. Rf3 {[%clk 0:00:02]}  Rd2 {[%clk 0:00:15]} 45. Kb5 {[%clk 0:00:02]}  Rd4 {[%clk 0:00:15]} 46. Nc3 {[%clk 0:00:01]}  Bd2 {[%clk 0:00:14]} 47. Re3 {[%clk 0:00:01]}  Bxc3 {[%clk 0:00:14]} 48. Rxc3 {[%clk 0:00:01]}  Rxe4 {[%clk 0:00:14]} 49. Rc6+ {[%clk 0:00:02]}  Kd5 {[%clk 0:00:14]} 50. Rc5+ {[%clk 0:00:02]}  Kd6 {[%clk 0:00:15]} 51. Rc6+ {[%clk 0:00:03]}  Kd5 {[%clk 0:00:15]} 52. Rxg6 {[%clk 0:00:03]}  Re1 {[%clk 0:00:13]} 53. Rxh6 {[%clk 0:00:03]}  e4 {[%clk 0:00:14]} 54. Rh8 {[%clk 0:00:04]}  e3 {[%clk 0:00:13]} 55. Rd8+ {[%clk 0:00:04]}  Ke4 {[%clk 0:00:14]} 56. Re8+ {[%clk 0:00:05]}  Kd3 {[%clk 0:00:14]} 57. g5 {[%clk 0:00:05]}  Rg1 {[%clk 0:00:13]} 58. h4 {[%clk 0:00:06]}  Rg4 {[%clk 0:00:14]} 59. Kb6 {[%clk 0:00:06]}  Re4 {[%clk 0:00:13]} 60. Rd8+ {[%clk 0:00:05]}  Kc2 {[%clk 0:00:12]} 61. Ra8 {[%clk 0:00:05]}  e2 {[%clk 0:00:11]} 62. Ra2+ {[%clk 0:00:05]}  Kd3 {[%clk 0:00:10]} 63. Rxe2 {[%clk 0:00:03]}  Kxe2 {[%clk 0:00:10]} 64. h5 {[%clk 0:00:03]}  Rxb4+ {[%clk 0:00:10]} 65. Kc6 {[%clk 0:00:03]}  Rg4 {[%clk 0:00:09]} 66. g6 {[%clk 0:00:04]}  Rg5 {[%clk 0:00:09]} 67. Kd6 {[%clk 0:00:04]}  Rxh5 {[%clk 0:00:09]} 68. g7 {[%clk 0:00:04]}  Rg5 {[%clk 0:00:09]} 0-1


[Site "https://www.chess.com"]

[Event "Titled Tuesday Blitz April 05 Late 2022"]
[White "Coelho, Ramyres Santana"]
[Black "Martin Barcelo, Carles"]
[WhiteFideId "2120690"]
[BlackFideId "24561444"]
[WhiteElo "2223"]
[BlackElo "2445"]
[Result "1-0"]
[Round "08"]
[TimeControl "180+1"]
[Date "2022.04.06"]
[WhiteClock "0:00:24"]
[BlackClock "0:00:11"]

1. e4 {[%clk 0:02:59]}  g6 {[%clk 0:02:56]} 2. d4 {[%clk 0:02:55]}  Bg7 {[%clk 0:02:57]} 3. Nc3 {[%clk 0:02:56]}  a6 {[%clk 0:02:56]} 4. f3 {[%clk 0:02:56]}  b5 {[%clk 0:02:56]} 5. Be3 {[%clk 0:02:56]}  Bb7 {[%clk 0:02:56]} 6. Qd2 {[%clk 0:02:56]}  d6 {[%clk 0:02:57]} 7. O-O-O {[%clk 0:02:57]}  Nd7 {[%clk 0:02:57]} 8. h4 {[%clk 0:02:55]}  h5 {[%clk 0:02:55]} 9. Nh3 {[%clk 0:02:54]}  c5 {[%clk 0:02:53]} 10. Ng5 {[%clk 0:02:51]}  Rc8 {[%clk 0:02:49]} 11. Nd5 {[%clk 0:02:49]}  Ngf6 {[%clk 0:02:41]} 12. Nxf6+ {[%clk 0:02:46]}  exf6 {[%clk 0:02:35]} 13. Nh3 {[%clk 0:02:42]}  cxd4 {[%clk 0:02:32]} 14. Bxd4 {[%clk 0:02:42]}  Ne5 {[%clk 0:02:32]} 15. f4 {[%clk 0:02:38]}  Ng4 {[%clk 0:02:30]} 16. Bd3 {[%clk 0:02:30]}  O-O {[%clk 0:02:25]} 17. Nf2 {[%clk 0:02:25]}  Nxf2 {[%clk 0:02:23]} 18. Qxf2 {[%clk 0:02:25]}  Re8 {[%clk 0:02:22]} 19. Rde1 {[%clk 0:02:19]}  d5 {[%clk 0:02:10]} 20. e5 {[%clk 0:02:07]}  f5 {[%clk 0:02:06]} 21. g4 {[%clk 0:02:03]}  fxg4 {[%clk 0:02:05]} 22. f5 {[%clk 0:02:03]}  Rf8 {[%clk 0:01:27]} 23. fxg6 {[%clk 0:01:46]}  fxg6 {[%clk 0:01:26]} 24. Qe2 {[%clk 0:01:42]}  Kh7 {[%clk 0:01:18]} 25. Ref1 {[%clk 0:01:23]}  Qe7 {[%clk 0:01:15]} 26. Bxg6+ {[%clk 0:01:16]}  Kg8 {[%clk 0:00:57]} 27. Bxh5 {[%clk 0:01:15]}  Rxf1+ {[%clk 0:00:55]} 28. Rxf1 {[%clk 0:01:16]}  Rf8 {[%clk 0:00:56]} 29. Rxf8+ {[%clk 0:01:15]}  Kxf8 {[%clk 0:00:46]} 30. Qxg4 {[%clk 0:01:09]}  Qb4 {[%clk 0:00:28]} 31. Qf4+ {[%clk 0:00:57]}  Kg8 {[%clk 0:00:25]} 32. Qf7+ {[%clk 0:00:53]}  Kh8 {[%clk 0:00:15]} 33. Qe8+ {[%clk 0:00:44]}  Qf8 {[%clk 0:00:14]} 34. Qxf8+ {[%clk 0:00:35]}  Bxf8 {[%clk 0:00:15]} 35. e6+ {[%clk 0:00:34]}  Kg8 {[%clk 0:00:12]} 36. Bf7+ {[%clk 0:00:34]}  Kh7 {[%clk 0:00:13]} 37. Bf6 {[%clk 0:00:34]}  Kh6 {[%clk 0:00:08]} 38. e7 {[%clk 0:00:34]}  Bxe7 {[%clk 0:00:09]} 39. Bxe7 {[%clk 0:00:35]}  d4 {[%clk 0:00:09]} 40. Kd2 {[%clk 0:00:34]}  Be4 {[%clk 0:00:09]} 41. Bg5+ {[%clk 0:00:34]}  Kg7 {[%clk 0:00:09]} 42. Bb3 {[%clk 0:00:34]}  a5 {[%clk 0:00:09]} 43. a4 {[%clk 0:00:33]}  Bc6 {[%clk 0:00:07]} 44. axb5 {[%clk 0:00:30]}  Bxb5 {[%clk 0:00:08]} 45. Bf4 {[%clk 0:00:30]}  a4 {[%clk 0:00:06]} 46. Ba2 {[%clk 0:00:30]}  Kg6 {[%clk 0:00:06]} 47. Bd5 {[%clk 0:00:27]}  Kh5 {[%clk 0:00:06]} 48. Bg5 {[%clk 0:00:26]}  Kg4 {[%clk 0:00:06]} 49. Be6+ {[%clk 0:00:26]}  Kh5 {[%clk 0:00:06]} 50. Bh3 {[%clk 0:00:26]}  Kg6 {[%clk 0:00:06]} 51. Bg2 {[%clk 0:00:25]}  Kh5 {[%clk 0:00:06]} 52. Bf3+ {[%clk 0:00:25]}  Kg6 {[%clk 0:00:06]} 53. Bf4 {[%clk 0:00:25]}  Kf5 {[%clk 0:00:05]} 54. Bd6 {[%clk 0:00:25]}  Kg6 {[%clk 0:00:04]} 55. h5+ {[%clk 0:00:25]}  Kg5 {[%clk 0:00:04]} 56. Be7+ {[%clk 0:00:24]}  Kh6 {[%clk 0:00:03]} 57. Bf8+ {[%clk 0:00:24]}  Kg5 {[%clk 0:00:04]} 58. h6 {[%clk 0:00:25]}  Kg6 {[%clk 0:00:04]} 59. Be4+ {[%clk 0:00:24]}  Kf7 {[%clk 0:00:03]} 60. h7 {[%clk 0:00:23]}  Kxf8 {[%clk 0:00:04]} 61. h8=Q+ {[%clk 0:00:22]}  Ke7 {[%clk 0:00:05]} 62. Qxd4 {[%clk 0:00:23]}  a3 {[%clk 0:00:04]} 63. bxa3 {[%clk 0:00:22]}  Bd7 {[%clk 0:00:05]} 64. Qxd7+ {[%clk 0:00:21]}  Kxd7 {[%clk 0:00:05]} 65. Ke3 {[%clk 0:00:22]}  Kc7 {[%clk 0:00:05]} 66. Kd4 {[%clk 0:00:23]}  Kb6 {[%clk 0:00:06]} 67. c4 {[%clk 0:00:24]}  Ka5 {[%clk 0:00:07]} 68. c5 {[%clk 0:00:24]}  Ka4 {[%clk 0:00:08]} 69. c6 {[%clk 0:00:24]}  Kxa3 {[%clk 0:00:09]} 70. c7 {[%clk 0:00:25]}  Kb2 {[%clk 0:00:10]} 71. c8=Q {[%clk 0:00:25]}  Kb3 {[%clk 0:00:10]} 72. Qc4+ {[%clk 0:00:24]}  Kb2 {[%clk 0:00:11]} 73. Qc3+ {[%clk 0:00:24]} 1-0


[Site "https://www.chess.com"]

[Event "Titled Tuesday Blitz April 05 Late 2022"]
[White "Constantinou, Peter"]
[Black "Tanenbaum, Zachary"]
[WhiteFideId "413038"]
[BlackFideId "2060850"]
[WhiteElo "2230"]
[BlackElo "2168"]
[Result "1-0"]
[Round "08"]
[TimeControl "180+1"]
[Date "2022.04.05"]
[WhiteClock "0:00:56"]
[BlackClock "0:00:44"]

1. d4 {[%clk 0:03:00]}  d5 {[%clk 0:03:00]} 2. c4 {[%clk 0:03:00]}  Bf5 {[%clk 0:03:00]} 3. cxd5 {[%clk 0:02:59]}  Bxb1 {[%clk 0:03:00]} 4. Rxb1 {[%clk 0:03:00]}  Qxd5 {[%clk 0:03:00]} 5. Qb3 {[%clk 0:02:43]}  Qxb3 {[%clk 0:02:44]} 6. axb3 {[%clk 0:02:44]}  Nc6 {[%clk 0:02:44]} 7. Nf3 {[%clk 0:02:42]}  O-O-O {[%clk 0:02:43]} 8. e3 {[%clk 0:02:40]}  e5 {[%clk 0:02:34]} 9. Bb5 {[%clk 0:02:33]}  Bb4+ {[%clk 0:02:33]} 10. Ke2 {[%clk 0:02:30]}  exd4 {[%clk 0:02:33]} 11. Rd1 {[%clk 0:02:07]}  Nge7 {[%clk 0:02:22]} 12. Nxd4 {[%clk 0:02:02]}  Nxd4+ {[%clk 0:02:21]} 13. Rxd4 {[%clk 0:02:03]}  Rxd4 {[%clk 0:02:21]} 14. exd4 {[%clk 0:02:04]}  c6 {[%clk 0:02:15]} 15. Bc4 {[%clk 0:02:03]}  Nf5 {[%clk 0:02:06]} 16. Be3 {[%clk 0:02:02]}  Nd6 {[%clk 0:01:56]} 17. Kf3 {[%clk 0:01:56]}  Rd8 {[%clk 0:01:52]} 18. g4 {[%clk 0:01:53]}  Ba5 {[%clk 0:01:52]} 19. Rd1 {[%clk 0:01:46]}  Bb6 {[%clk 0:01:52]} 20. h4 {[%clk 0:01:43]}  Rd7 {[%clk 0:01:46]} 21. h5 {[%clk 0:01:42]}  Ne8 {[%clk 0:01:40]} 22. Bd3 {[%clk 0:01:34]}  g6 {[%clk 0:01:35]} 23. Bc4 {[%clk 0:01:27]}  Nc7 {[%clk 0:01:32]} 24. Kf4 {[%clk 0:01:14]}  Nd5+ {[%clk 0:01:30]} 25. Kg5 {[%clk 0:01:09]}  f6+ {[%clk 0:01:11]} 26. Kh6 {[%clk 0:01:08]}  Nxe3 {[%clk 0:01:07]} 27. fxe3 {[%clk 0:01:08]}  g5 {[%clk 0:01:07]} 28. Be6 {[%clk 0:01:01]}  Kd8 {[%clk 0:00:58]} 29. Bxd7 {[%clk 0:00:58]}  Kxd7 {[%clk 0:00:59]} 30. Kxh7 {[%clk 0:00:58]}  f5 {[%clk 0:00:45]} 31. gxf5 {[%clk 0:00:57]}  g4 {[%clk 0:00:45]} 32. Kg7 {[%clk 0:00:56]}  g3 {[%clk 0:00:44]} 33. f6 {[%clk 0:00:56]} 1-0


[Site "https://www.chess.com"]

[Event "Titled Tuesday Blitz April 05 Late 2022"]
[White "Degardin, Sylvain"]
[Black "Kaganskiy, Gleb"]
[WhiteFideId "20623070"]
[BlackFideId "4132025"]
[WhiteElo "2492"]
[BlackElo "2270"]
[Result "1-0"]
[Round "08"]
[TimeControl "180+1"]
[Date "2022.04.06"]
[WhiteClock "0:00:45"]
[BlackClock "0:00:05"]

1. d4 {[%clk 0:03:00]}  d5 {[%clk 0:02:58]} 2. c4 {[%clk 0:03:01]}  c6 {[%clk 0:02:59]} 3. Nf3 {[%clk 0:03:01]}  Nf6 {[%clk 0:02:59]} 4. e3 {[%clk 0:03:02]}  Bg4 {[%clk 0:02:57]} 5. Nc3 {[%clk 0:02:59]}  e6 {[%clk 0:02:57]} 6. Qb3 {[%clk 0:02:56]}  Qb6 {[%clk 0:02:54]} 7. Nh4 {[%clk 0:02:56]}  Be7 {[%clk 0:02:44]} 8. h3 {[%clk 0:02:54]}  Bh5 {[%clk 0:02:41]} 9. g4 {[%clk 0:02:54]}  Bg6 {[%clk 0:02:41]} 10. Nxg6 {[%clk 0:02:47]}  hxg6 {[%clk 0:02:42]} 11. Bg2 {[%clk 0:02:46]}  Nbd7 {[%clk 0:02:39]} 12. Bd2 {[%clk 0:02:24]}  dxc4 {[%clk 0:02:01]} 13. Qxc4 {[%clk 0:02:22]}  Nd5 {[%clk 0:01:55]} 14. O-O-O {[%clk 0:02:16]}  Nxc3 {[%clk 0:01:37]} 15. Bxc3 {[%clk 0:02:14]}  Nf6 {[%clk 0:01:31]} 16. e4 {[%clk 0:02:06]}  Nd7 {[%clk 0:01:14]} 17. f4 {[%clk 0:02:02]}  O-O-O {[%clk 0:01:10]} 18. e5 {[%clk 0:01:55]}  Kb8 {[%clk 0:01:02]} 19. Qa4 {[%clk 0:01:45]}  Qc7 {[%clk 0:00:50]} 20. Ba5 {[%clk 0:01:42]}  Nb6 {[%clk 0:00:48]} 21. Qb3 {[%clk 0:01:42]}  Rd7 {[%clk 0:00:32]} 22. Rd3 {[%clk 0:01:39]}  Rhd8 {[%clk 0:00:31]} 23. Rhd1 {[%clk 0:01:39]}  Bf8 {[%clk 0:00:13]} 24. Kb1 {[%clk 0:01:39]}  Be7 {[%clk 0:00:13]} 25. a3 {[%clk 0:01:35]}  Bf8 {[%clk 0:00:12]} 26. Ka2 {[%clk 0:01:29]}  Be7 {[%clk 0:00:12]} 27. Be4 {[%clk 0:01:29]}  Bf8 {[%clk 0:00:12]} 28. f5 {[%clk 0:01:29]}  gxf5 {[%clk 0:00:13]} 29. gxf5 {[%clk 0:01:29]}  exf5 {[%clk 0:00:10]} 30. Bxf5 {[%clk 0:01:28]}  Rd5 {[%clk 0:00:11]} 31. Bc3 {[%clk 0:01:22]}  Rb5 {[%clk 0:00:10]} 32. Qc2 {[%clk 0:01:18]}  Nd5 {[%clk 0:00:10]} 33. Be4 {[%clk 0:01:10]}  Qd7 {[%clk 0:00:08]} 34. Rf1 {[%clk 0:01:05]}  Qe6 {[%clk 0:00:05]} 35. Ka1 {[%clk 0:01:02]}  Be7 {[%clk 0:00:06]} 36. Rdf3 {[%clk 0:01:01]}  Nxc3 {[%clk 0:00:05]} 37. Qxc3 {[%clk 0:01:00]}  Rf8 {[%clk 0:00:04]} 38. Bd3 {[%clk 0:00:52]}  Rb6 {[%clk 0:00:03]} 39. Bc4 {[%clk 0:00:52]}  Qg6 {[%clk 0:00:01]} 40. Rxf7 {[%clk 0:00:51]}  Rxf7 {[%clk 0:00:01]} 41. Rxf7 {[%clk 0:00:51]}  Qg2 {[%clk 0:00:02]} 42. Rxe7 {[%clk 0:00:48]}  Qh1+ {[%clk 0:00:03]} 43. Ka2 {[%clk 0:00:48]}  Rxb2+ {[%clk 0:00:04]} 44. Qxb2 {[%clk 0:00:46]}  Qb1+ {[%clk 0:00:04]} 45. Qxb1 {[%clk 0:00:45]}  c5 {[%clk 0:00:05]} 46. Qxb7# {[%clk 0:00:45]} 1-0


[Site "https://www.chess.com"]

[Event "Titled Tuesday Blitz April 05 Late 2022"]
[White "Dimakiling, Oliver"]
[Black "Abdyzhapar, Asylbek"]
[WhiteFideId "5202248"]
[BlackFideId "13800337"]
[WhiteElo "2426"]
[BlackElo "2331"]
[Result "0-1"]
[Round "08"]
[TimeControl "180+1"]
[Date "2022.04.05"]
[WhiteClock "0:00:17"]
[BlackClock "0:00:13"]

1. c4 {[%clk 0:03:00]}  Nf6 {[%clk 0:02:59]} 2. Nc3 {[%clk 0:03:01]}  g6 {[%clk 0:02:59]} 3. Nf3 {[%clk 0:03:00]}  Bg7 {[%clk 0:02:59]} 4. d4 {[%clk 0:02:59]}  O-O {[%clk 0:02:58]} 5. e4 {[%clk 0:02:58]}  d6 {[%clk 0:02:59]} 6. h3 {[%clk 0:02:57]}  e5 {[%clk 0:02:57]} 7. d5 {[%clk 0:02:57]}  a5 {[%clk 0:02:56]} 8. Be3 {[%clk 0:02:56]}  Na6 {[%clk 0:02:54]} 9. Nd2 {[%clk 0:02:54]}  Nd7 {[%clk 0:02:54]} 10. g4 {[%clk 0:02:53]}  Ndc5 {[%clk 0:02:50]} 11. Rg1 {[%clk 0:02:48]}  Nb4 {[%clk 0:02:40]} 12. Qb1 {[%clk 0:02:43]}  a4 {[%clk 0:02:15]} 13. a3 {[%clk 0:02:41]}  Nba6 {[%clk 0:02:15]} 14. Qc2 {[%clk 0:02:41]}  Bd7 {[%clk 0:02:14]} 15. O-O-O {[%clk 0:02:19]}  Kh8 {[%clk 0:02:14]} 16. f3 {[%clk 0:02:04]}  f5 {[%clk 0:02:12]} 17. Be2 {[%clk 0:02:04]}  fxe4 {[%clk 0:02:02]} 18. fxe4 {[%clk 0:02:03]}  Qh4 {[%clk 0:01:57]} 19. Bf1 {[%clk 0:01:46]}  Bh6 {[%clk 0:01:51]} 20. g5 {[%clk 0:01:29]}  Bg7 {[%clk 0:01:51]} 21. Nb5 {[%clk 0:01:28]}  Rac8 {[%clk 0:01:38]} 22. Kb1 {[%clk 0:01:27]}  Nb3 {[%clk 0:01:28]} 23. Nxb3 {[%clk 0:01:24]}  axb3 {[%clk 0:01:28]} 24. Qxb3 {[%clk 0:01:25]}  Qxe4+ {[%clk 0:01:25]} 25. Ka2 {[%clk 0:01:24]}  Rf3 {[%clk 0:01:22]} 26. Bg2 {[%clk 0:01:16]}  Rxe3 {[%clk 0:01:04]} 27. Bxe4 {[%clk 0:01:15]}  Rxb3 {[%clk 0:01:03]} 28. Kxb3 {[%clk 0:01:16]}  Nc5+ {[%clk 0:01:03]} 29. Ka2 {[%clk 0:01:16]}  Nxe4 {[%clk 0:01:03]} 30. h4 {[%clk 0:01:16]}  Bf5 {[%clk 0:00:54]} 31. Rgf1 {[%clk 0:01:09]}  Kg8 {[%clk 0:00:52]} 32. Rc1 {[%clk 0:00:55]}  Nc5 {[%clk 0:00:50]} 33. b4 {[%clk 0:00:53]}  Nd3 {[%clk 0:00:50]} 34. Rc3 {[%clk 0:00:50]}  e4 {[%clk 0:00:50]} 35. Rc2 {[%clk 0:00:51]}  Be5 {[%clk 0:00:49]} 36. Kb3 {[%clk 0:00:45]}  c6 {[%clk 0:00:49]} 37. dxc6 {[%clk 0:00:42]}  bxc6 {[%clk 0:00:49]} 38. Nc3 {[%clk 0:00:43]}  Rb8 {[%clk 0:00:45]} 39. Re2 {[%clk 0:00:41]}  Nc5+ {[%clk 0:00:41]} 40. Kc2 {[%clk 0:00:38]}  e3+ {[%clk 0:00:41]} 41. Rxf5 {[%clk 0:00:37]}  gxf5 {[%clk 0:00:38]} 42. bxc5 {[%clk 0:00:38]}  f4 {[%clk 0:00:38]} 43. cxd6 {[%clk 0:00:37]}  Bxd6 {[%clk 0:00:38]} 44. Ne4 {[%clk 0:00:36]}  Bxa3 {[%clk 0:00:36]} 45. Kd3 {[%clk 0:00:36]}  Rd8+ {[%clk 0:00:34]} 46. Kc3 {[%clk 0:00:35]}  Bc1 {[%clk 0:00:32]} 47. Nf6+ {[%clk 0:00:21]}  Kf7 {[%clk 0:00:30]} 48. Ng4 {[%clk 0:00:22]}  Kg6 {[%clk 0:00:23]} 49. Ne5+ {[%clk 0:00:20]}  Kf5 {[%clk 0:00:19]} 50. Nxc6 {[%clk 0:00:21]}  Rd6 {[%clk 0:00:19]} 51. Nd4+ {[%clk 0:00:21]}  Ke4 {[%clk 0:00:18]} 52. Nc2 {[%clk 0:00:19]}  f3 {[%clk 0:00:17]} 53. Rh2 {[%clk 0:00:17]}  f2 {[%clk 0:00:13]} 0-1


[Site "https://www.chess.com"]

[Event "Titled Tuesday Blitz April 05 Late 2022"]
[White "Domingo Nunez, Alejandro"]
[Black "Ronka, Erik"]
[WhiteFideId "22245561"]
[BlackFideId "505080"]
[WhiteElo "2215"]
[BlackElo "2264"]
[Result "0-1"]
[Round "08"]
[TimeControl "180+1"]
[Date "2022.04.05"]
[WhiteClock "0:00:01"]
[BlackClock "0:00:12"]

1. Nf3 {[%clk 0:02:52]}  d5 {[%clk 0:02:59]} 2. g3 {[%clk 0:02:52]}  c6 {[%clk 0:03:00]} 3. Bg2 {[%clk 0:02:53]}  Bg4 {[%clk 0:03:01]} 4. O-O {[%clk 0:02:53]}  Nd7 {[%clk 0:03:01]} 5. c4 {[%clk 0:02:54]}  e6 {[%clk 0:03:01]} 6. b3 {[%clk 0:02:54]}  Ngf6 {[%clk 0:03:01]} 7. Bb2 {[%clk 0:02:55]}  Bd6 {[%clk 0:03:02]} 8. Qc2 {[%clk 0:02:54]}  O-O {[%clk 0:03:01]} 9. d3 {[%clk 0:02:55]}  Qe7 {[%clk 0:03:02]} 10. Nbd2 {[%clk 0:02:53]}  e5 {[%clk 0:03:01]} 11. e4 {[%clk 0:02:53]}  dxe4 {[%clk 0:02:58]} 12. dxe4 {[%clk 0:02:45]}  Rfd8 {[%clk 0:02:52]} 13. Rfe1 {[%clk 0:02:44]}  Nf8 {[%clk 0:02:44]} 14. Nf1 {[%clk 0:02:38]}  Bxf3 {[%clk 0:02:41]} 15. Bxf3 {[%clk 0:02:39]}  Ne6 {[%clk 0:02:41]} 16. Ne3 {[%clk 0:02:29]}  g6 {[%clk 0:02:40]} 17. Bg2 {[%clk 0:02:03]}  Nd7 {[%clk 0:02:28]} 18. a3 {[%clk 0:01:54]}  a5 {[%clk 0:02:25]} 19. Ng4 {[%clk 0:01:21]}  f6 {[%clk 0:02:23]} 20. h4 {[%clk 0:01:11]}  Bc5 {[%clk 0:02:19]} 21. h5 {[%clk 0:01:09]}  Bd4 {[%clk 0:02:18]} 22. Rad1 {[%clk 0:01:01]}  Bxb2 {[%clk 0:02:11]} 23. Qxb2 {[%clk 0:01:02]}  Ndc5 {[%clk 0:02:02]} 24. Qc3 {[%clk 0:00:54]}  Nd4 {[%clk 0:01:58]} 25. b4 {[%clk 0:00:48]}  axb4 {[%clk 0:01:52]} 26. axb4 {[%clk 0:00:49]}  Nce6 {[%clk 0:01:51]} 27. c5 {[%clk 0:00:46]}  Ra2 {[%clk 0:01:39]} 28. Bf1 {[%clk 0:00:42]}  Rc2 {[%clk 0:01:37]} 29. Qa3 {[%clk 0:00:38]}  gxh5 {[%clk 0:00:54]} 30. Nh6+ {[%clk 0:00:38]}  Kg7 {[%clk 0:00:52]} 31. Nf5+ {[%clk 0:00:38]}  Nxf5 {[%clk 0:00:51]} 32. exf5 {[%clk 0:00:27]}  Nd4 {[%clk 0:00:52]} 33. Rd3 {[%clk 0:00:18]}  Qf7 {[%clk 0:00:47]} 34. Qa7 {[%clk 0:00:15]}  Rd7 {[%clk 0:00:43]} 35. Qb8 {[%clk 0:00:14]}  Rb2 {[%clk 0:00:30]} 36. Red1 {[%clk 0:00:13]}  Rb3 {[%clk 0:00:28]} 37. Rxb3 {[%clk 0:00:13]}  Qxb3 {[%clk 0:00:29]} 38. Rd3 {[%clk 0:00:12]}  Qf7 {[%clk 0:00:26]} 39. Kg2 {[%clk 0:00:10]}  Nxf5 {[%clk 0:00:24]} 40. Rxd7 {[%clk 0:00:08]}  Qxd7 {[%clk 0:00:25]} 41. Be2 {[%clk 0:00:08]}  h4 {[%clk 0:00:24]} 42. Bg4 {[%clk 0:00:05]}  hxg3 {[%clk 0:00:10]} 43. Bxf5 {[%clk 0:00:03]}  Qxf5 {[%clk 0:00:11]} 44. Qxb7+ {[%clk 0:00:03]}  Kg6 {[%clk 0:00:11]} 45. fxg3 {[%clk 0:00:02]}  Qe4+ {[%clk 0:00:11]} 46. Kf2 {[%clk 0:00:02]}  Qd4+ {[%clk 0:00:11]} 47. Kg2 {[%clk 0:00:02]}  Qd5+ {[%clk 0:00:11]} 48. Kf2 {[%clk 0:00:02]}  e4 {[%clk 0:00:12]} 49. Qe7 {[%clk 0:00:01]}  Qd4+ {[%clk 0:00:12]} 50. Ke2 {[%clk 0:00:01]}  Qd3+ {[%clk 0:00:12]} 51. Ke1 {[%clk 0:00:01]}  e3 {[%clk 0:00:12]} 0-1


[Site "https://www.chess.com"]

[Event "Titled Tuesday Blitz April 05 Late 2022"]
[White "Ezat, Mohamed"]
[Black "Hess, Robert"]
[WhiteFideId "10600906"]
[BlackFideId "2022036"]
[WhiteElo "2386"]
[BlackElo "2557"]
[Result "0-1"]
[Round "08"]
[TimeControl "180+1"]
[Date "2022.04.05"]
[WhiteClock "0:00:03"]
[BlackClock "0:00:04"]

1. d4 {[%clk 0:03:00]}  g6 {[%clk 0:02:59]} 2. c4 {[%clk 0:02:59]}  Bg7 {[%clk 0:02:59]} 3. e4 {[%clk 0:02:59]}  d6 {[%clk 0:02:58]} 4. Nc3 {[%clk 0:02:58]}  c5 {[%clk 0:02:59]} 5. d5 {[%clk 0:02:56]}  Bxc3+ {[%clk 0:02:59]} 6. bxc3 {[%clk 0:02:56]}  Qa5 {[%clk 0:02:59]} 7. Bd2 {[%clk 0:02:55]}  Nf6 {[%clk 0:03:00]} 8. Bd3 {[%clk 0:02:54]}  Nbd7 {[%clk 0:02:59]} 9. Nf3 {[%clk 0:02:54]}  Nb6 {[%clk 0:02:56]} 10. e5 {[%clk 0:02:52]}  dxe5 {[%clk 0:02:49]} 11. Nxe5 {[%clk 0:02:52]}  Bf5 {[%clk 0:02:43]} 12. Bxf5 {[%clk 0:02:49]}  gxf5 {[%clk 0:02:43]} 13. O-O {[%clk 0:02:42]}  Qa4 {[%clk 0:01:23]} 14. Qe2 {[%clk 0:02:34]}  Ne4 {[%clk 0:00:53]} 15. Qh5 {[%clk 0:02:18]}  Nd6 {[%clk 0:00:28]} 16. Rfe1 {[%clk 0:02:15]}  Nbxc4 {[%clk 0:00:24]} 17. Nxf7 {[%clk 0:00:55]}  Nxf7 {[%clk 0:00:25]} 18. Rxe7+ {[%clk 0:00:55]}  Kxe7 {[%clk 0:00:23]} 19. Re1+ {[%clk 0:00:55]}  Kf8 {[%clk 0:00:05]} 20. Bh6+ {[%clk 0:00:50]}  Kg8 {[%clk 0:00:06]} 21. Qxf5 {[%clk 0:00:18]}  Nce5 {[%clk 0:00:05]} 22. f4 {[%clk 0:00:10]}  Ng6 {[%clk 0:00:05]} 23. Qf6 {[%clk 0:00:03]}  Nxh6 {[%clk 0:00:04]} 0-1


[Site "https://www.chess.com"]